bitfinex-derivatives/quotes_BTCF0:USTF0_20250527
["timestamp","ask_amount","ask_price","bid_price","bid_amount"]
[1748356565996,0.18812241,109320.0,109310.0,0.75355305]
[1748356566192,0.04332241,109320.0,109310.0,0.95103792]
[1748356566398,0.00137375,109330.0,109320.0,0.1828653]
[1748356566399,0.14617375,109330.0,109320.0,0.1828653]
[1748356566599,0.14617375,109330.0,109320.0,0.7288506]
[1748356566600,0.18947159,109330.0,109320.0,0.7288506]
[1748356567096,0.52947159,109330.0,109320.0,0.0448853]
[1748356567409,0.52947159,109330.0,109320.0,0.25227724]
[1748356567904,0.52947159,109330.0,109320.0,0.25239724]
[1748356567905,0.89027159,109330.0,109320.0,0.25239724]
[1748356568109,0.92027159,109330.0,109320.0,0.25239724]
[1748356568307,0.70027159,109330.0,109320.0,0.1829853]
[1748356568497,0.70027159,109330.0,109320.0,0.2555853]
[1748356568693,0.86027159,109330.0,109320.0,0.2555853]
[1748356569698,0.90354223,109330.0,109320.0,0.2555853]
[1748356570202,0.86027159,109330.0,109320.0,0.2555853]
[1748356570408,0.71547159,109330.0,109320.0,0.2555853]
[1748356570617,0.04467159,109330.0,109320.0,0.7133853]
[1748356570903,0.04467159,109330.0,109320.0,0.3525853]
[1748356570904,0.19147159,109330.0,109320.0,0.3525853]
[1748356571098,0.11847159,109330.0,109320.0,0.3525853]
[1748356571305,0.08790167,109330.0,109320.0,0.97566377]
[1748356571500,0.08785065,109330.0,109320.0,0.3525853]
[1748356571813,1.25997925,109330.0,109320.0,0.00012]
[1748356571998,0.42785065,109330.0,109320.0,0.1828653]
[1748356572196,0.42785065,109330.0,109320.0,0.9936658]
[1748356572197,0.14372977,109330.0,109320.0,0.9936658]
[1748356572501,0.10055071,109330.0,109320.0,1.06688087]
[1748356572701,0.13055071,109330.0,109320.0,0.8046024]
[1748356573009,1.53823131,109330.0,109320.0,0.00012]
[1748356573207,1.53823131,109330.0,109310.0,0.11517919]
[1748356573208,0.1828653,109320.0,109310.0,0.11517919]
[1748356573502,0.62802,109320.0,109310.0,0.29805759]
[1748356573702,0.67090946,109320.0,109310.0,0.44515759]
[1748356573908,0.18858946,109320.0,109310.0,0.44515759]
[1748356574101,0.23144448,109320.0,109310.0,0.37583506]
[1748356574297,0.23144448,109320.0,109310.0,0.73663506]
[1748356575006,0.08574448,109320.0,109310.0,0.75663506]
[1748356575205,0.04288946,109320.0,109310.0,1.62263506]
[1748356575403,0.04288946,109320.0,109310.0,0.81142898]
[1748356575608,0.04288946,109320.0,109310.0,1.68966745]
[1748356576109,0.04288946,109320.0,109310.0,1.70966745]
[1748356576810,0.04288946,109320.0,109310.0,1.65966745]
[1748356577213,0.04288946,109320.0,109310.0,1.67966745]
[1748356578102,0.04288946,109320.0,109310.0,1.67970905]
[1748356578305,0.04288946,109320.0,109310.0,1.19822905]
[1748356578507,0.04288946,109320.0,109310.0,0.59748543]
[1748356578708,0.04288946,109320.0,109310.0,1.285617]
[1748356578914,0.04288946,109320.0,109310.0,1.295617]
[1748356579104,0.41826504,109330.0,109310.0,1.295617]
[1748356579105,0.04329784,109330.0,109320.0,0.1828653]
[1748356579305,0.04329784,109330.0,109320.0,1.32343703]
[1748356579502,0.04329784,109330.0,109320.0,0.9085302]
[1748356579703,0.11779784,109330.0,109320.0,0.75465407]
[1748356580005,0.19149784,109330.0,109320.0,0.45729733]
[1748356580313,0.19149784,109330.0,109320.0,0.74851733]
[1748356580715,0.19149784,109330.0,109320.0,0.28589592]
[1748356580716,0.55229784,109330.0,109320.0,0.28589592]
[1748356581021,1.18249756,109330.0,109320.0,0.12808336]
[1748356581206,1.18249756,109330.0,109320.0,0.05843203]
[1748356581414,1.2664155,109330.0,109320.0,0.05861742]
[1748356581617,1.1749435,109330.0,109320.0,0.05861742]
[1748356581825,1.1749435,109330.0,109320.0,0.05861976]
[1748356582006,1.1749435,109330.0,109310.0,0.00455987]
[1748356582007,1.6823312,109330.0,109310.0,0.00455987]
[1748356582315,1.25275652,109320.0,109310.0,0.00455987]
[1748356582520,1.63275652,109320.0,109310.0,0.00455987]
[1748356582715,2.00152384,109320.0,109310.0,0.00455987]
[1748356583026,2.00152384,109320.0,109310.0,0.00467987]
[1748356583319,0.99753854,109320.0,109310.0,0.18756187]
[1748356583510,1.0538495,109320.0,109310.0,0.18756187]
[1748356583714,1.21645626,109320.0,109310.0,0.18756187]
[1748356583917,1.21645626,109320.0,109310.0,0.00467987]
[1748356584109,1.2446002,109320.0,109310.0,0.18756187]
[1748356584717,1.2446002,109320.0,109310.0,0.00467987]
[1748356585119,1.2446002,109320.0,109310.0,0.18756187]
[1748356585420,1.2446002,109320.0,109310.0,0.26880152]
[1748356585623,1.2446002,109320.0,109310.0,0.18756187]
[1748356586608,1.1531202,109320.0,109310.0,0.18756187]
[1748356588117,1.1531202,109320.0,109310.0,0.00467987]
[1748356588420,1.0686653,109320.0,109310.0,0.00467987]
[1748356589609,1.1601453,109320.0,109310.0,0.00467987]
[1748356589811,1.6075595,109320.0,109310.0,0.00467987]
[1748356590019,1.6075595,109320.0,109310.0,0.00455987]
[1748356590620,1.3575595,109320.0,109310.0,0.00455987]
[1748356590821,1.3575595,109320.0,109310.0,0.00467987]
[1748356592915,1.3575595,109320.0,109310.0,0.08591952]
[1748356593422,1.9671195,109320.0,109310.0,0.08591952]
[1748356593609,1.9671195,109320.0,109310.0,0.00467987]
[1748356593914,1.9671195,109320.0,109310.0,0.08591952]
[1748356594118,1.9671195,109320.0,109310.0,0.00467987]
[1748356594821,2.4647195,109320.0,109310.0,0.00467987]
[1748356595723,1.6577453,109320.0,109310.0,0.00467987]
[1748356595917,2.0442253,109320.0,109310.0,0.00467987]
[1748356596224,2.0442253,109320.0,109310.0,0.07547987]
[1748356596525,2.0442253,109320.0,109310.0,0.15007987]
[1748356598416,2.14305976,109320.0,109310.0,0.15007987]
[1748356599022,2.34047396,109320.0,109310.0,0.00467987]
[1748356599229,2.43195396,109320.0,109310.0,7e-08]
[1748356599525,2.5165051,109320.0,109310.0,0.00442238]
[1748356599736,2.51650351,109320.0,109310.0,0.00454238]
[1748356600226,2.51650351,109320.0,109310.0,8e-08]
[1748356600227,2.43195237,109320.0,109310.0,8e-08]
[1748356600525,2.51650351,109320.0,109310.0,0.00442239]
[1748356600730,1.84112931,109320.0,109310.0,0.00442239]
[1748356601023,0.59643287,109320.0,109310.0,0.96695625]
[1748356601222,0.1207354,109330.0,109320.0,0.1828604]
[1748356601527,0.1207354,109330.0,109320.0,1.22302558]
[1748356601528,0.0434354,109330.0,109320.0,1.22302558]
[1748356601728,0.0434354,109330.0,109320.0,1.32621424]
[1748356601931,0.00137354,109340.0,109330.0,0.1828472]
[1748356602227,0.00137354,109340.0,109330.0,1.03925214]
[1748356602531,0.1949984,109360.0,109340.0,0.2742281]
[1748356602532,0.1827958,109360.0,109340.0,0.2742281]
[1748356602734,0.1827958,109360.0,109350.0,0.52848295]
[1748356602735,0.2284954,109360.0,109350.0,0.52848295]
[1748356602916,0.2284954,109360.0,109350.0,0.5789802]
[1748356604130,0.2284954,109360.0,109350.0,0.4357]
[1748356604428,0.2284954,109360.0,109350.0,0.08850456]
[1748356604928,0.6084954,109360.0,109350.0,0.08850456]
[1748356605134,0.4184954,109360.0,109350.0,0.52122456]
[1748356605324,0.19,109360.0,109350.0,0.95183205]
[1748356605518,0.1827936,109360.0,109350.0,1.28092572]
[1748356605722,0.1827936,109360.0,109350.0,1.23054283]
[1748356605930,0.1827936,109360.0,109350.0,1.28082937]
[1748356606227,0.1370908,109370.0,109350.0,1.67369206]
[1748356606228,0.3198795,109370.0,109350.0,1.67369206]
[1748356606532,0.3198674,109370.0,109360.0,0.63832]
[1748356607329,0.2284662,109380.0,109360.0,0.63832]
[1748356607531,0.1827618,109380.0,109370.0,0.23123449]
[1748356607835,0.22,109380.0,109370.0,0.30923449]
[1748356608029,0.1827617,109380.0,109370.0,0.72034739]
[1748356608329,0.46867073,109390.0,109370.0,0.90312419]
[1748356608330,0.56004323,109390.0,109370.0,0.90312419]
[1748356608535,0.93573023,109390.0,109380.0,0.1518]
[1748356609926,1.08773023,109390.0,109380.0,0.1518]
[1748356610128,0.72693023,109390.0,109380.0,0.1518]
[1748356610323,0.52924013,109390.0,109380.0,0.1518]
[1748356610529,0.52924013,109390.0,109380.0,0.15622231]
[1748356610831,0.52924013,109390.0,109380.0,0.15634231]
[1748356611131,0.34649503,109390.0,109380.0,0.33910411]
[1748356611331,0.34649503,109390.0,109380.0,0.46998411]
[1748356612030,0.52924013,109390.0,109380.0,0.28722231]
[1748356612427,0.60314013,109390.0,109380.0,0.28722231]
[1748356613125,0.60314013,109390.0,109380.0,0.15634231]
[1748356613126,0.96394013,109390.0,109380.0,0.15634231]
[1748356613337,1.04214013,109390.0,109380.0,0.15634231]
[1748356613638,1.04214013,109390.0,109380.0,0.15622231]
[1748356613841,1.04214013,109390.0,109380.0,0.15634231]
[1748356615222,1.51346013,109390.0,109380.0,0.00454231]
[1748356615425,1.55437097,109390.0,109380.0,0.00454231]
[1748356615830,1.08305097,109390.0,109380.0,0.15454231]
[1748356616025,1.04214013,109390.0,109380.0,0.15454231]
[1748356616234,0.96394013,109390.0,109380.0,0.15454231]
[1748356616538,1.43474013,109390.0,109380.0,0.15454231]
[1748356616729,1.36088013,109390.0,109380.0,0.15454231]
[1748356617036,1.43282013,109390.0,109380.0,0.00442231]
[1748356617343,1.43282013,109390.0,109380.0,0.00454231]
[1748356617344,1.51112013,109390.0,109380.0,0.00454231]
[1748356617728,1.51112013,109390.0,109380.0,0.14824231]
[1748356618832,1.04044013,109390.0,109380.0,0.14824231]
[1748356619040,1.51112013,109390.0,109380.0,0.14824231]
[1748356619240,1.36059933,109390.0,109380.0,0.33100331]
[1748356619429,0.99979933,109390.0,109380.0,0.33100331]
[1748356620025,1.35059933,109390.0,109380.0,0.14824231]
[1748356620224,1.42359933,109390.0,109380.0,0.14824231]
[1748356620436,1.13429933,109390.0,109380.0,0.14824231]
[1748356620625,1.13429933,109390.0,109380.0,0.33100331]
[1748356621238,0.27223933,109390.0,109380.0,0.33100331]
[1748356621439,0.61223933,109390.0,109380.0,0.14824231]
[1748356621623,1.44343933,109390.0,109380.0,0.00454231]
[1748356621824,1.51493933,109390.0,109380.0,0.07894231]
[1748356622130,1.51493933,109390.0,109380.0,0.15562231]
[1748356622332,1.51493933,109390.0,109380.0,0.15574231]
[1748356624231,0.42949503,109390.0,109380.0,0.15574231]
[1748356624451,0.01649503,109390.0,109380.0,1.02283751]
[1748356624647,0.01649503,109390.0,109380.0,1.03283751]
[1748356625241,0.01649503,109390.0,109380.0,1.02283751]
[1748356627036,0.52923943,109390.0,109380.0,0.15574231]
[1748356627232,1.03493943,109390.0,109380.0,0.15574231]
[1748356627650,1.03493943,109390.0,109380.0,0.15562231]
[1748356627835,1.03493943,109390.0,109380.0,0.15574231]
[1748356627836,1.15257943,109390.0,109380.0,0.15574231]
[1748356628540,1.19329886,109390.0,109380.0,0.15574231]
[1748356628852,1.17257943,109390.0,109380.0,0.15574231]
[1748356629440,1.21331554,109390.0,109380.0,0.15574231]
[1748356630932,1.57411554,109390.0,109380.0,0.15574231]
[1748356631134,1.57343554,109390.0,109380.0,0.00454231]
[1748356631331,1.62999135,109390.0,109380.0,0.00454231]
[1748356631642,1.62999135,109390.0,109380.0,0.00442231]
[1748356631946,1.62999135,109390.0,109380.0,0.00454231]
[1748356632246,0.97948695,109390.0,109380.0,0.00454231]
[1748356632440,0.61868695,109390.0,109380.0,0.34290311]
[1748356632637,1.03001114,109390.0,109380.0,0.34290311]
[1748356632833,1.10567514,109390.0,109380.0,0.14747224]
[1748356633038,1.57351514,109390.0,109380.0,0.05473863]
[1748356633247,1.57351514,109390.0,109380.0,0.05485863]
[1748356633443,1.57351514,109390.0,109380.0,0.2918239]
[1748356633638,1.26927095,109390.0,109380.0,0.2918239]
[1748356633835,1.63007095,109390.0,109380.0,0.2918239]
[1748356634033,1.57351514,109390.0,109380.0,0.2918239]
[1748356634252,1.61445101,109390.0,109380.0,0.2918239]
[1748356634455,1.61445101,109390.0,109380.0,0.16014231]
[1748356634638,1.61445101,109390.0,109380.0,0.24150758]
[1748356634843,1.5737149,109390.0,109380.0,0.24150758]
[1748356635045,1.5737149,109390.0,109380.0,0.06944136]
[1748356635251,0.1827597,109380.0,109370.0,0.6349559]
[1748356635451,0.1827597,109380.0,109370.0,0.68485217]
[1748356635452,0.52263587,109380.0,109370.0,0.68485217]
[1748356636148,0.52263587,109380.0,109370.0,0.6349559]
[1748356636149,0.4817,109380.0,109370.0,0.6349559]
[1748356636338,0.51263522,109380.0,109370.0,0.6349559]
[1748356636539,0.51291717,109380.0,109370.0,0.6349559]
[1748356636737,0.11801717,109380.0,109370.0,0.8323701]
[1748356637545,0.44801717,109380.0,109370.0,0.8323701]
[1748356637754,0.52291717,109380.0,109370.0,0.6349559]
[1748356638143,0.19291717,109380.0,109370.0,0.7870759]
[1748356638351,0.04121717,109380.0,109370.0,0.9844901]
[1748356638558,0.04121717,109380.0,109370.0,1.76688771]
[1748356638946,0.00028195,109380.0,109370.0,1.76688771]
[1748356639554,0.00028195,109380.0,109370.0,1.85992572]
[1748356639861,0.00028195,109380.0,109370.0,1.66249805]
[1748356640046,0.00028195,109380.0,109370.0,1.80756082]
[1748356640250,0.00028195,109380.0,109370.0,1.80768082]
[1748356640963,0.00028195,109380.0,109370.0,1.59768082]
[1748356641265,0.00028195,109380.0,109370.0,1.60768082]
[1748356641558,0.00028195,109380.0,109370.0,1.66415446]
[1748356641761,0.00028195,109380.0,109370.0,1.60768082]
[1748356642061,0.00028195,109380.0,109370.0,1.97768082]
[1748356642253,0.00028195,109380.0,109370.0,2.03414952]
[1748356642459,0.00028195,109380.0,109370.0,1.97768082]
[1748356642871,0.00028195,109380.0,109370.0,1.97751121]
[1748356643073,0.00028195,109380.0,109370.0,1.77751121]
[1748356643470,0.00028195,109380.0,109370.0,1.6844582]
[1748356643967,0.00028195,109380.0,109370.0,1.31155121]
[1748356644167,0.47868195,109380.0,109370.0,1.43343121]
[1748356644375,0.47868195,109380.0,109370.0,1.143084]
[1748356644572,0.47868195,109380.0,109370.0,1.142964]
[1748356644780,0.14868195,109380.0,109370.0,1.143084]
[1748356644968,0.72217071,109380.0,109370.0,0.50798111]
[1748356645280,0.72217071,109380.0,109370.0,0.69075851]
[1748356645476,0.53941011,109380.0,109370.0,0.5977055]
[1748356645667,0.72217071,109380.0,109370.0,0.14716891]
[1748356645871,0.72217071,109380.0,109370.0,0.0541281]
[1748356646068,0.72217071,109380.0,109370.0,0.0540081]
[1748356646268,1.08297071,109380.0,109370.0,0.0541281]
[1748356646777,1.08297071,109380.0,109370.0,0.00442231]
[1748356646778,1.23095452,109380.0,109370.0,0.00442231]
[1748356646963,1.23095452,109380.0,109360.0,0.00013756]
[1748356646964,0.1827774,109370.0,109360.0,0.00013756]
[1748356647171,1.77485323,109370.0,109360.0,0.04974797]
[1748356647371,0.1828108,109350.0,109340.0,0.09304081]
[1748356647577,0.1828275,109340.0,109330.0,0.16220543]
[1748356647769,0.7030275,109340.0,109330.0,0.21178345]
[1748356647966,0.7030275,109340.0,109330.0,0.19822246]
[1748356648170,1.0638275,109340.0,109330.0,0.14256297]
[1748356648574,1.0638275,109340.0,109330.0,0.04957802]
[1748356648768,1.10455566,109340.0,109330.0,0.04957802]
[1748356648969,1.10455566,109340.0,109330.0,0.04969802]
[1748356649177,0.1828443,109330.0,109320.0,0.00013756]
[1748356649378,1.56600297,109330.0,109320.0,0.04967051]
[1748356649874,1.56600297,109330.0,109320.0,0.00025756]
[1748356650081,1.56600297,109330.0,109320.0,0.00013756]
[1748356650280,1.56600297,109330.0,109320.0,0.00025756]
[1748356650485,1.56600297,109330.0,109320.0,0.00013756]
[1748356650779,0.19787867,109330.0,109320.0,0.38053276]
[1748356650974,0.40117867,109330.0,109320.0,0.75532289]
[1748356651170,0.35117867,109330.0,109320.0,0.91122289]
[1748356651477,0.5407,109330.0,109320.0,0.35300869]
[1748356651786,0.09,109330.0,109320.0,1.18263455]
[1748356652080,0.05655581,109340.0,109330.0,0.1828443]
[1748356652271,0.05655581,109340.0,109330.0,1.72072251]
[1748356652581,0.07663756,109350.0,109340.0,0.1828275]
[1748356652784,0.07663756,109350.0,109340.0,1.11574571]
[1748356652976,0.07663756,109350.0,109340.0,1.1883417]
[1748356653288,0.07663756,109350.0,109340.0,1.2377332]
[1748356653584,0.07663756,109350.0,109340.0,1.0677332]
[1748356653585,0.00013756,109350.0,109340.0,1.0677332]
[1748356653773,0.00013756,109350.0,109340.0,1.36071815]
[1748356653971,0.05683776,109380.0,109370.0,0.1827774]
[1748356654279,0.21203776,109380.0,109370.0,0.87584069]
[1748356654578,0.21203776,109380.0,109370.0,0.96319176]
[1748356654770,0.21203776,109380.0,109370.0,0.59239176]
[1748356654969,0.46548195,109380.0,109370.0,0.59239176]
[1748356655170,0.46548195,109380.0,109370.0,0.58796945]
[1748356655171,0.15548195,109380.0,109370.0,0.58796945]
[1748356655578,0.15548195,109380.0,109370.0,1.0417544]
[1748356655781,0.07528195,109380.0,109370.0,0.80302544]
[1748356655984,5e-08,109380.0,109370.0,0.90669596]
[1748356656175,0.07863798,109400.0,109390.0,0.182744]
[1748356656375,0.07531384,109400.0,109390.0,1.62311683]
[1748356656573,0.07531384,109400.0,109390.0,2.08747683]
[1748356656772,0.08531384,109400.0,109390.0,1.42991683]
[1748356657174,0.08531384,109400.0,109390.0,1.51104258]
[1748356657175,0.23221384,109400.0,109390.0,1.51104258]
[1748356657373,0.4064697,109430.0,109390.0,1.51104258]
[1748356657374,0.2283592,109430.0,109390.0,1.51104258]
[1748356657577,0.24316956,109460.0,109390.0,1.57829858]
[1748356657578,0.19750876,109460.0,109390.0,1.57829858]
[1748356657873,0.86680297,109500.0,109490.0,0.1825771]
[1748356657874,0.105,109500.0,109490.0,0.1825771]
[1748356658076,0.105,109500.0,109490.0,0.7507913]
[1748356658383,0.1469,109510.0,109500.0,0.5433604]
[1748356658573,0.1469,109510.0,109500.0,0.7495604]
[1748356658770,0.2816437,109520.0,109510.0,0.5433438]
[1748356659184,0.2816437,109520.0,109510.0,0.6995438]
[1748356659482,0.2816437,109520.0,109510.0,0.80975965]
[1748356659672,0.7429557,109520.0,109510.0,0.42980165]
[1748356659875,1.1197957,109520.0,109510.0,0.3608]
[1748356660173,1.1197957,109520.0,109510.0,0.36092]
[1748356660585,1.3023228,109520.0,109510.0,0.3608]
[1748356660782,2.8023228,109520.0,109510.0,0.36092]
[1748356660987,2.8023228,109520.0,109500.0,0.00013756]
[1748356660988,0.1825437,109510.0,109500.0,0.00013756]
[1748356661186,0.1825437,109510.0,109480.0,0.6346734]
[1748356661187,1.1164571,109510.0,109480.0,0.6346734]
[1748356661379,0.1825604,109500.0,109490.0,0.5433761]
[1748356661689,0.1825604,109500.0,109480.0,0.4520944]
[1748356661690,0.1825771,109490.0,109480.0,0.3608]
[1748356661988,0.37,109490.0,109480.0,0.8048065]
[1748356662193,0.37,109490.0,109480.0,0.6228137]
[1748356662489,0.6439131,109490.0,109480.0,0.36092]
[1748356662685,0.37,109490.0,109480.0,0.8049265]
[1748356662883,0.37,109490.0,109480.0,0.9577265]
[1748356663382,0.37,109490.0,109480.0,0.6963137]
[1748356663691,0.37,109490.0,109480.0,0.6961937]
[1748356663897,0.37,109490.0,109480.0,0.6963137]
[1748356664186,0.7055771,109490.0,109480.0,0.4354]
[1748356664578,0.7055771,109490.0,109480.0,0.3608]
[1748356664785,0.37,109490.0,109480.0,0.9599266]
[1748356665890,0.37,109490.0,109480.0,0.6985138]
[1748356666378,0.521,109490.0,109480.0,0.6181137]
[1748356666586,0.521,109490.0,109480.0,0.6179937]
[1748356666778,0.7035771,109490.0,109480.0,0.43552]
[1748356666995,0.2484,109490.0,109480.0,0.6181137]
[1748356667182,0.2484,109490.0,109480.0,1.5890337]
[1748356667487,0.2484,109490.0,109480.0,1.6694337]
[1748356667693,0.2484,109490.0,109480.0,1.6594337]
[1748356668084,0.2484,109490.0,109480.0,1.6593137]
[1748356668395,0.2484,109490.0,109480.0,1.2994337]
[1748356668686,0.2484,109490.0,109480.0,0.8252737]
[1748356668883,0.2484,109490.0,109480.0,1.2986337]
[1748356669081,0.2484,109490.0,109480.0,0.6983937]
[1748356669284,0.2484,109490.0,109480.0,0.6985137]
[1748356669990,0.4033,109490.0,109480.0,0.6985137]
[1748356670187,0.4033,109490.0,109480.0,0.6983937]
[1748356670393,0.4033,109490.0,109480.0,0.70293601]
[1748356670699,0.4033,109490.0,109480.0,0.70281601]
[1748356670993,0.4033,109490.0,109480.0,0.70293601]
[1748356673287,0.2484,109490.0,109480.0,0.70293601]
[1748356674491,0.2484,109490.0,109480.0,0.82965601]
[1748356674997,0.2484,109490.0,109480.0,0.82953601]
[1748356675492,0.2484,109490.0,109480.0,0.82965601]
[1748356675699,0.2484,109490.0,109480.0,0.82953601]
[1748356675885,0.2484,109490.0,109480.0,0.82965601]
[1748356676693,0.2484,109490.0,109480.0,1.14965601]
[1748356678102,0.2484,109490.0,109480.0,1.41106881]
[1748356678405,0.2484,109490.0,109480.0,0.82965601]
[1748356678603,0.2484,109490.0,109480.0,1.09106881]
[1748356679190,0.2484,109490.0,109480.0,0.70293601]
[1748356679590,0.2484,109490.0,109480.0,0.82953601]
[1748356679786,0.2484,109490.0,109480.0,0.82965601]
[1748356679787,0.4047,109490.0,109480.0,0.82965601]
[1748356681399,0.2484,109490.0,109480.0,0.70293601]
[1748356681599,0.2484,109490.0,109480.0,1.09106881]
[1748356682188,0.2484,109490.0,109480.0,0.96434881]
[1748356682395,0.2484,109490.0,109480.0,0.82965601]
[1748356682604,0.2484,109490.0,109480.0,0.82953601]
[1748356682807,0.2484,109490.0,109480.0,0.82965601]
[1748356682996,0.2484,109490.0,109480.0,0.89844298]
[1748356683398,0.2484,109490.0,109480.0,0.82965601]
[1748356683600,0.2484,109490.0,109480.0,0.89844298]
[1748356683807,0.00013756,109500.0,109490.0,0.1825774]
[1748356683992,0.14,109500.0,109490.0,1.29450825]
[1748356684196,0.1594,109510.0,109500.0,0.1825608]
[1748356684500,0.4994,109510.0,109500.0,0.6965608]
[1748356686695,0.4994,109510.0,109500.0,0.76534777]
[1748356687707,0.4994,109510.0,109500.0,0.71826716]
[1748356689211,0.4994,109510.0,109500.0,0.84166716]
[1748356693001,0.4994,109510.0,109500.0,0.71826716]
[1748356693202,0.4994,109510.0,109500.0,0.56506716]
[1748356693203,0.6819441,109510.0,109500.0,0.56506716]
[1748356693406,0.6819441,109510.0,109500.0,0.68846716]
[1748356693598,0.4994,109510.0,109500.0,0.86340305]
[1748356693799,0.4994,109510.0,109500.0,1.17626865]
[1748356693800,0.42,109510.0,109500.0,1.17626865]
[1748356694015,0.42,109510.0,109500.0,1.05286865]
[1748356694215,0.42,109510.0,109500.0,1.09600801]
[1748356694504,0.309181,109510.0,109500.0,1.55285349]
[1748356694708,0.309181,109510.0,109500.0,1.58607055]
[1748356694906,0.309181,109510.0,109500.0,1.50476616]
[1748356695102,0.309181,109510.0,109500.0,1.54818812]
[1748356695411,0.1532,109530.0,109520.0,0.1825275]
[1748356695605,0.1932,109530.0,109520.0,1.17143141]
[1748356695807,0.5332,109530.0,109520.0,1.32463141]
[1748356696113,0.56906202,109530.0,109520.0,1.26199772]
[1748356696414,0.38,109530.0,109520.0,1.15554933]
[1748356696601,0.38,109530.0,109520.0,1.06066119]
[1748356696602,0.7146108,109530.0,109520.0,1.06066119]
[1748356696906,0.56795102,109530.0,109520.0,0.97377995]
[1748356697109,0.56795102,109530.0,109520.0,1.09717995]
[1748356697110,0.75046182,109530.0,109520.0,1.09717995]
[1748356697405,1.37705102,109530.0,109470.0,0.44407939]
[1748356697605,0.1825941,109480.0,109470.0,0.514]
[1748356697809,0.89922491,109480.0,109470.0,0.00012]
[1748356698005,0.1826108,109470.0,109460.0,0.21854805]
[1748356698209,0.1826108,109470.0,109460.0,0.25854805]
[1748356698210,1.72522294,109470.0,109460.0,0.25854805]
[1748356698418,1.98163296,109470.0,109460.0,0.11732871]
[1748356698709,1.72847361,109470.0,109460.0,0.11732871]
[1748356698928,1.45254906,109470.0,109460.0,0.29995641]
[1748356699305,1.20254906,109470.0,109460.0,0.30007641]
[1748356699510,1.2590176,109470.0,109460.0,0.11744871]
[1748356699806,1.1676656,109470.0,109460.0,0.11744871]
[1748356700114,1.1671056,109470.0,109460.0,0.12187102]
[1748356700503,0.7757856,109470.0,109460.0,0.04454231]
[1748356700703,1.6131256,109470.0,109460.0,0.04454231]
[1748356700909,1.57729479,109470.0,109460.0,0.04454231]
[1748356701214,1.4359508,109470.0,109460.0,0.04454231]
[1748356701507,0.9689108,109470.0,109460.0,0.04454231]
[1748356701811,1.4355508,109470.0,109460.0,0.04454231]
[1748356702006,0.0855,109470.0,109460.0,0.40534231]
[1748356702209,0.734471,109470.0,109460.0,0.66497001]
[1748356702409,0.734471,109470.0,109460.0,0.19554231]
[1748356702720,0.268111,109470.0,109460.0,0.73897001]
[1748356702914,0.076,109470.0,109460.0,0.73897001]
[1748356703109,0.598611,109470.0,109460.0,0.40534231]
[1748356703411,1.546383,109470.0,109460.0,0.04454231]
[1748356703611,1.546383,109470.0,109460.0,0.04442231]
[1748356703810,1.796383,109470.0,109460.0,0.04454231]
[1748356704010,1.796383,109470.0,109460.0,0.04442231]
[1748356704422,1.796383,109470.0,109460.0,0.04454231]
[1748356704914,1.796383,109470.0,109460.0,0.14454231]
[1748356705107,1.796383,109470.0,109460.0,0.22717001]
[1748356705308,0.988911,109470.0,109460.0,0.35061001]
[1748356705516,0.0855,109470.0,109460.0,0.88901001]
[1748356705718,0.076,109470.0,109460.0,0.96791001]
[1748356705906,0.258611,109470.0,109460.0,0.96791001]
[1748356706514,0.076,109470.0,109460.0,0.96791001]
[1748356706812,0.00013756,109480.0,109470.0,0.182611]
[1748356707017,0.00013756,109480.0,109470.0,0.799911]
[1748356707206,0.18273196,109480.0,109470.0,0.923351]
[1748356708315,0.00013756,109480.0,109470.0,0.923351]
[1748356708916,0.66810128,109520.0,109470.0,0.923351]
[1748356708917,0.0912615,109530.0,109500.0,0.0456366]
[1748356709124,0.256633,109520.0,109510.0,0.63984]
[1748356709311,0.576633,109520.0,109510.0,0.55964]
[1748356709510,0.576633,109520.0,109510.0,0.7421844]
[1748356709809,0.576633,109520.0,109510.0,0.55964]
[1748356710317,0.576633,109520.0,109500.0,0.36093756]
[1748356710318,0.1825443,109510.0,109500.0,0.36093756]
[1748356710512,0.6161443,109510.0,109500.0,0.55757756]
[1748356710712,0.6161443,109510.0,109500.0,0.55769756]
[1748356710909,0.6161443,109510.0,109500.0,0.43425756]
[1748356711117,0.65375655,109510.0,109500.0,0.55769756]
[1748356712108,0.66335655,109510.0,109500.0,0.55757756]
[1748356712313,0.66335655,109510.0,109500.0,0.43425756]
[1748356712515,0.66335655,109510.0,109500.0,0.55769756]
[1748356712715,0.66335655,109510.0,109500.0,0.5574551]
[1748356713110,0.66335655,109510.0,109500.0,0.4340151]
[1748356713318,0.66335655,109510.0,109500.0,0.5574551]
[1748356713621,1.0900243,109510.0,109500.0,0.07332]
[1748356713830,1.0900243,109510.0,109500.0,0.00012]
[1748356714024,1.0900243,109510.0,109490.0,0.08140778]
[1748356714025,0.182561,109500.0,109490.0,0.08140778]
[1748356714319,0.577361,109500.0,109490.0,0.25576056]
[1748356715010,0.577361,109500.0,109490.0,0.13232056]
[1748356715011,0.938161,109500.0,109490.0,0.13232056]
[1748356715219,0.938161,109500.0,109490.0,0.00013756]
[1748356715619,0.938161,109500.0,109490.0,0.00025756]
[1748356715826,0.938161,109500.0,109490.0,0.54351526]
[1748356715827,0.3852,109500.0,109490.0,0.54351526]
[1748356716026,0.3852,109500.0,109490.0,0.61811526]
[1748356716213,0.492561,109500.0,109490.0,0.74167526]
[1748356716618,0.492561,109500.0,109490.0,0.74155526]
[1748356716913,0.492561,109500.0,109490.0,0.78573497]
[1748356717118,0.568261,109500.0,109490.0,0.78561497]
[1748356717325,0.568261,109500.0,109490.0,0.78573497]
[1748356717512,0.568261,109500.0,109490.0,0.78561497]
[1748356717718,0.568261,109500.0,109490.0,0.78573497]
[1748356717917,0.568261,109500.0,109490.0,0.66229497]
[1748356718123,0.258261,109500.0,109490.0,0.82573723]
[1748356718416,0.182561,109500.0,109490.0,0.78573723]
[1748356718824,0.182561,109500.0,109490.0,0.73554777]
[1748356718825,0.552561,109500.0,109490.0,0.73554777]
[1748356719029,0.628261,109500.0,109490.0,0.86684735]
[1748356719217,0.628261,109500.0,109490.0,0.66229713]
[1748356719422,0.628261,109500.0,109490.0,0.49971953]
[1748356719825,0.628261,109500.0,109490.0,0.47971953]
[1748356720128,0.637861,109500.0,109490.0,0.40499953]
[1748356720424,0.637861,109500.0,109490.0,0.53708715]
[1748356720625,1.089989,109500.0,109490.0,0.17628715]
[1748356720928,1.089989,109500.0,109480.0,0.08092748]
[1748356720929,0.1825776,109490.0,109480.0,0.08092748]
[1748356721123,0.1825776,109490.0,109480.0,0.13178233]
[1748356721124,1.50123587,109490.0,109480.0,0.13178233]
[1748356721330,0.1825944,109480.0,109470.0,0.08092748]
[1748356721526,0.6285944,109480.0,109470.0,0.23178503]
[1748356721827,0.9893944,109480.0,109470.0,0.23190503]
[1748356722035,1.08073841,109480.0,109470.0,0.1]